[Event "*** Qualifier 3: Titled Tuesday 3|2 Blitz"]
[Site "Chess.com"]
[Date "2017.04.18"]
[Round "1"]
[White "Dr-Bassem"]
[Black "GM_Splinter"]
[Result "1-0"]
[WhiteElo "2637"]
[BlackElo "2330"]
[TimeControl "180+2"]
[EndTime "13:13:07 PDT"]
[Termination "Dr-Bassem won on time"]

1. e4 {[%clk 0:03:00.5]} 1... e5 {[%clk 0:03:01]} 2. Nf3 {[%clk 0:03:00.9]} 2...
Nc6 {[%clk 0:03:02.6]} 3. Bc4 {[%clk 0:02:59.9]} 3... Bc5 {[%clk 0:02:59.8]} 4.
O-O {[%clk 0:03:00]} 4... Nf6 {[%clk 0:03:00.4]} 5. d3 {[%clk 0:03:01.3]} 5...
a6 {[%clk 0:03:00.8]} 6. c3 {[%clk 0:03:02.3]} 6... Ba7 {[%clk 0:02:58.4]} 7.
Re1 {[%clk 0:02:59.5]} 7... d6 {[%clk 0:02:57.2]} 8. Bb3 {[%clk 0:02:59.7]} 8...
O-O {[%clk 0:02:54.4]} 9. h3 {[%clk 0:03:00.1]} 9... Ne7 {[%clk 0:02:54.2]} 10.
Nbd2 {[%clk 0:02:56]} 10... Ng6 {[%clk 0:02:54.8]} 11. Nf1 {[%clk 0:02:57.4]}
11... b5 {[%clk 0:02:54.4]} 12. Ng3 {[%clk 0:02:57.3]} 12... h6 {[%clk
0:02:41.3]} 13. d4 {[%clk 0:02:58.1]} 13... Bb7 {[%clk 0:02:37.6]} 14. Bc2
{[%clk 0:02:55.5]} 14... Re8 {[%clk 0:02:36.6]} 15. a4 {[%clk 0:02:47.1]} 15...
c5 {[%clk 0:02:36.1]} 16. d5 {[%clk 0:02:25.7]} 16... c4 {[%clk 0:02:36.7]} 17.
Nf5 {[%clk 0:02:23.2]} 17... Bc8 {[%clk 0:02:26.7]} 18. axb5 {[%clk 0:02:14.9]}
18... axb5 {[%clk 0:02:27.1]} 19. Be3 {[%clk 0:02:15.6]} 19... Bxf5 {[%clk
0:02:06]} 20. exf5 {[%clk 0:02:17.5]} 20... Bxe3 {[%clk 0:02:05.2]} 21. fxg6
{[%clk 0:02:08.4]} 21... Bc5 {[%clk 0:01:53.4]} 22. gxf7+ {[%clk 0:02:08.1]}
22... Kxf7 {[%clk 0:01:53.9]} 23. Bf5 {[%clk 0:02:08.7]} 23... Qb6 {[%clk
0:01:43.7]} 24. Be6+ {[%clk 0:02:07.9]} 24... Ke7 {[%clk 0:01:42.4]} 25. Qc2
{[%clk 0:02:06.4]} 25... Qb7 {[%clk 0:01:27.3]} 26. Qg6 {[%clk 0:02:02.7]} 26...
Kf8 {[%clk 0:01:24.5]} 27. Nh4 {[%clk 0:01:36.6]} 27... Ra7 {[%clk 0:01:25]} 28.
Qh7 {[%clk 0:00:44.1]} 28... Rxe6 {[%clk 0:00:41.9]} 29. Qh8+ {[%clk 0:00:37.6]}
29... Kf7 {[%clk 0:00:38.8]} 30. Nf5 {[%clk 0:00:17.6]} 30... Kg6 {[%clk
0:00:29.4]} 31. Nh4+ {[%clk 0:00:16.1]} 31... Kf7 {[%clk 0:00:30.5]} 32. dxe6+
{[%clk 0:00:17.1]} 32... Kxe6 {[%clk 0:00:31.4]} 33. Nf3 {[%clk 0:00:10.7]}
33... Kf7 {[%clk 0:00:29.2]} 34. Rxa7 {[%clk 0:00:10.7]} 34... Qxa7 {[%clk
0:00:29.9]} 35. Kh2 {[%clk 0:00:09.4]} 35... Bxf2 {[%clk 0:00:29.6]} 36. Rf1
{[%clk 0:00:10.5]} 36... Be3 {[%clk 0:00:29.4]} 37. Qc8 {[%clk 0:00:10.5]} 37...
Bf4+ {[%clk 0:00:29.9]} 38. Kh1 {[%clk 0:00:11.5]} 38... Qe3 {[%clk 0:00:15.7]}
39. Qb7+ {[%clk 0:00:11.3]} 39... Kg6 {[%clk 0:00:15.6]} 40. Qxb5 {[%clk
0:00:10.8]} 40... Ne4 {[%clk 0:00:14.6]} 41. Qe8+ {[%clk 0:00:10.1]} 41... Kh7
{[%clk 0:00:15]} 42. Re1 {[%clk 0:00:04]} 42... Nf2+ {[%clk 0:00:12.5]} 43. Kg1
{[%clk 0:00:04.9]} 43... Nxh3+ {[%clk 0:00:12.8]} 44. Kh1 {[%clk 0:00:06.2]}
44... Nf2+ {[%clk 0:00:13.4]} 45. Kg1 {[%clk 0:00:07.5]} 45... Qc5 {[%clk
0:00:12.6]} 46. Re2 {[%clk 0:00:06.1]} 46... Ng4+ {[%clk 0:00:11.7]} 47. Kh1
{[%clk 0:00:06.4]} 47... Qd5 {[%clk 0:00:12.6]} 48. Qh5 {[%clk 0:00:05.4]} 48...
Qd1+ {[%clk 0:00:12.6]} 49. Re1 {[%clk 0:00:06.6]} 49... Nf2+ {[%clk 0:00:08.3]}
50. Kg1 {[%clk 0:00:07.2]} 50... Qc2 {[%clk 0:00:09.3]} 51. Rf1 {[%clk
0:00:07.6]} 51... Be3 {[%clk 0:00:09.3]} 52. Kh2 {[%clk 0:00:08.2]} 52... Qg6
{[%clk 0:00:10.1]} 53. Qxg6+ {[%clk 0:00:07.8]} 53... Kxg6 {[%clk 0:00:12]} 54.
Ra1 {[%clk 0:00:06.7]} 54... Nd3 {[%clk 0:00:12.5]} 55. Ra6 {[%clk 0:00:07.1]}
55... e4 {[%clk 0:00:13.1]} 56. Nd4 {[%clk 0:00:05.4]} 56... Bf4+ {[%clk
0:00:12.4]} 57. g3 {[%clk 0:00:06.4]} 57... Be5 {[%clk 0:00:13.5]} 58. Nb5
{[%clk 0:00:07.1]} 58... e3 {[%clk 0:00:13]} 59. Nxd6 {[%clk 0:00:07.1]} 59...
e2 {[%clk 0:00:13.4]} 60. Nxc4+ {[%clk 0:00:07.5]} 60... Kf5 {[%clk 0:00:13.7]}
61. Ne3+ {[%clk 0:00:07.7]} 61... Ke4 {[%clk 0:00:14.1]} 62. Nc2 {[%clk
0:00:08.5]} 62... Nxb2 {[%clk 0:00:12.4]} 63. Re6 {[%clk 0:00:06.9]} 63... Nd3
{[%clk 0:00:11.9]} 64. c4 {[%clk 0:00:08.1]} 64... Kf3 {[%clk 0:00:12.7]} 65. c5
{[%clk 0:00:07.6]} 65... Bxg3+ {[%clk 0:00:13.2]} 66. Kg1 {[%clk 0:00:08.7]}
66... Bf2+ {[%clk 0:00:13.2]} 67. Kh2 {[%clk 0:00:09.5]} 67... Bxc5 {[%clk
0:00:14.3]} 68. Re8 {[%clk 0:00:05.6]} 68... Bd6+ {[%clk 0:00:14.6]} 69. Kg1
{[%clk 0:00:06]} 69... Be5 {[%clk 0:00:14.5]} 70. Re6 {[%clk 0:00:03.7]} 70...
h5 {[%clk 0:00:14.3]} 71. Re8 {[%clk 0:00:03.6]} 71... h4 {[%clk 0:00:15.2]} 72.
Rf8+ {[%clk 0:00:04.7]} 72... Bf6 {[%clk 0:00:14.8]} 73. Re8 {[%clk 0:00:05.5]}
73... Be5 {[%clk 0:00:14.1]} 74. Rf8+ {[%clk 0:00:06]} 74... Ke4 {[%clk
0:00:13.5]} 75. Re8 {[%clk 0:00:05.3]} 75... h3 {[%clk 0:00:14]} 76. Kh1 {[%clk
0:00:03.4]} 76... g5 {[%clk 0:00:14.4]} 77. Kg1 {[%clk 0:00:03.6]} 77... g4
{[%clk 0:00:15.3]} 78. Rg8 {[%clk 0:00:04.4]} 78... Kf3 {[%clk 0:00:13.2]} 79.
Rf8+ {[%clk 0:00:05.4]} 79... Bf4 {[%clk 0:00:14.2]} 80. Nd4+ {[%clk 0:00:05.1]}
80... Ke3 {[%clk 0:00:14.8]} 81. Nxe2 {[%clk 0:00:02.4]} 81... Kxe2 {[%clk
0:00:15.8]} 82. Rg8 {[%clk 0:00:02.8]} 82... g3 {[%clk 0:00:14.1]} 83. Kh1
{[%clk 0:00:03.6]} 83... Ne1 {[%clk 0:00:12.1]} 84. Kg1 {[%clk 0:00:03.6]} 84...
Be3+ {[%clk 0:00:10.6]} 85. Kh1 {[%clk 0:00:04]} 1-0

[Event "*** Qualifier 3: Titled Tuesday 3|2 Blitz"]
[Site "Chess.com"]
[Date "2017.04.18"]
[Round "1"]
[White "RobertoJBM"]
[Black "ChessQueen"]
[Result "1/2-1/2"]
[WhiteElo "2405"]
[BlackElo "2125"]
[TimeControl "180+2"]
[EndTime "13:13:16 PDT"]
[Termination "Game drawn by repetition"]

1. d4 {[%clk 0:03:00.6]} 1... Nf6 {[%clk 0:02:55.3]} 2. c3 {[%clk 0:03:02.5]}
2... e6 {[%clk 0:02:56]} 3. Nf3 {[%clk 0:03:00.8]} 3... Be7 {[%clk 0:02:56.3]}
4. Bf4 {[%clk 0:02:56.3]} 4... b6 {[%clk 0:02:57]} 5. e3 {[%clk 0:02:57.4]} 5...
Bb7 {[%clk 0:02:58]} 6. Nbd2 {[%clk 0:02:58.6]} 6... O-O {[%clk 0:02:58.9]} 7.
Bd3 {[%clk 0:02:59.6]} 7... d6 {[%clk 0:02:59]} 8. h3 {[%clk 0:03:00.7]} 8...
Nbd7 {[%clk 0:03:00]} 9. Bh2 {[%clk 0:03:00.5]} 9... Re8 {[%clk 0:03:00.4]} 10.
O-O {[%clk 0:02:59.9]} 10... Bf8 {[%clk 0:03:01.5]} 11. e4 {[%clk 0:03:00.8]}
11... e5 {[%clk 0:03:01]} 12. d5 {[%clk 0:03:01.7]} 12... c6 {[%clk 0:03:00.1]}
13. dxc6 {[%clk 0:03:00.3]} 13... Bxc6 {[%clk 0:03:00.6]} 14. Re1 {[%clk
0:03:00.9]} 14... Nc5 {[%clk 0:02:59.9]} 15. Bc2 {[%clk 0:03:01.9]} 15... h6
{[%clk 0:03:00.6]} 16. c4 {[%clk 0:03:00.1]} 16... Rc8 {[%clk 0:03:00.4]} 17.
Qe2 {[%clk 0:03:00.6]} 17... Ne6 {[%clk 0:03:01.1]} 18. Rad1 {[%clk 0:02:58.2]}
18... Qc7 {[%clk 0:03:02]} 19. Bd3 {[%clk 0:02:57.5]} 19... Bb7 {[%clk
0:03:01.7]} 20. b3 {[%clk 0:02:57.6]} 20... Red8 {[%clk 0:03:02.1]} 21. Nf1
{[%clk 0:02:58.1]} 21... g6 {[%clk 0:03:00.7]} 22. Ne3 {[%clk 0:02:58.6]} 22...
Nh5 {[%clk 0:02:55.9]} 23. g3 {[%clk 0:02:50.1]} 23... Nc5 {[%clk 0:02:53.7]}
24. Nd5 {[%clk 0:02:50]} 24... Bxd5 {[%clk 0:02:54.1]} 25. exd5 {[%clk
0:02:50.1]} 25... Nxd3 {[%clk 0:02:54.9]} 26. Qxd3 {[%clk 0:02:50.2]} 26... f5
{[%clk 0:02:55.3]} 27. Qe2 {[%clk 0:02:45.7]} 27... Qf7 {[%clk 0:02:51.9]} 28.
Nh4 {[%clk 0:02:44.9]} 28... Ng7 {[%clk 0:02:49.3]} 29. Ng2 {[%clk 0:02:45]}
29... Be7 {[%clk 0:02:46.7]} 30. f4 {[%clk 0:02:44.8]} 30... e4 {[%clk
0:02:47.4]} 31. Kh1 {[%clk 0:02:43.9]} 31... Rd7 {[%clk 0:02:47.4]} 32. Bg1
{[%clk 0:02:44.8]} 32... Rdc7 {[%clk 0:02:47.5]} 33. Bd4 {[%clk 0:02:45]} 33...
Nh5 {[%clk 0:02:48.1]} 34. Kh2 {[%clk 0:02:45.5]} 34... Bf6 {[%clk 0:02:42]} 35.
Qf2 {[%clk 0:02:44.8]} 35... Bxd4 {[%clk 0:02:40.9]} 36. Rxd4 {[%clk 0:02:46.7]}
36... Nf6 {[%clk 0:02:42]} 37. Ne3 {[%clk 0:02:46.5]} 37... Nd7 {[%clk
0:02:37.1]} 38. Rg1 {[%clk 0:02:42]} 38... Kh7 {[%clk 0:02:37.9]} 39. g4 {[%clk
0:02:42.8]} 39... Qf6 {[%clk 0:02:35.6]} 40. Rd2 {[%clk 0:02:41.5]} 40... Nc5
{[%clk 0:02:36.4]} 41. Qg3 {[%clk 0:02:32.4]} 41... Nd3 {[%clk 0:02:32.2]} 42.
Rf1 {[%clk 0:02:23.3]} 42... Rg8 {[%clk 0:02:22.6]} 43. Rg2 {[%clk 0:02:23.9]}
43... Rcg7 {[%clk 0:02:23.3]} 44. g5 {[%clk 0:02:20.8]} 44... hxg5 {[%clk
0:02:21.6]} 45. fxg5 {[%clk 0:02:21.9]} 45... Qe5 {[%clk 0:02:22.7]} 46. Qxe5
{[%clk 0:02:22.6]} 46... Nxe5 {[%clk 0:02:23]} 47. h4 {[%clk 0:02:20.3]} 47...
Rf7 {[%clk 0:02:14.6]} 48. Kg3 {[%clk 0:02:06.3]} 48... Nd3 {[%clk 0:02:12.9]}
49. Kh3 {[%clk 0:02:06.8]} 49... f4 {[%clk 0:02:09.3]} 50. Ng4 {[%clk
0:02:07.9]} 50... f3 {[%clk 0:02:10.5]} 51. Rd2 {[%clk 0:02:08.2]} 51... Rgf8
{[%clk 0:02:06.2]} 52. Kg3 {[%clk 0:02:07.8]} 52... Kg7 {[%clk 0:02:03.8]} 53.
Nf6 {[%clk 0:02:06.1]} 53... Rxf6 {[%clk 0:02:02.6]} 54. gxf6+ {[%clk 0:02:08]}
54... Rxf6 {[%clk 0:02:03.8]} 55. Rxd3 {[%clk 0:02:05.9]} 55... exd3 {[%clk
0:02:03]} 56. Rxf3 {[%clk 0:02:06.9]} 56... d2 {[%clk 0:01:40.5]} 57. Rd3 {[%clk
0:02:07.5]} 57... Rf1 {[%clk 0:01:38.1]} 58. Rxd2 {[%clk 0:02:08.3]} 58... Rg1+
{[%clk 0:01:37.6]} 59. Rg2 {[%clk 0:02:08.9]} 59... Rd1 {[%clk 0:01:37.2]} 60.
Re2 {[%clk 0:02:09]} 60... Rd3+ {[%clk 0:01:34.7]} 61. Kf4 {[%clk 0:02:09.5]}
61... Kf7 {[%clk 0:01:21.1]} 62. Re6 {[%clk 0:02:09.2]} 62... Rd2 {[%clk
0:01:22.3]} 63. Rxd6 {[%clk 0:01:33.7]} 63... Rxa2 {[%clk 0:01:23]} 64. Kg5
{[%clk 0:01:32.3]} 64... Rg2+ {[%clk 0:01:15.6]} 65. Kh6 {[%clk 0:01:33]} 65...
Rg4 {[%clk 0:01:09.8]} 66. h5 {[%clk 0:01:27.4]} 66... gxh5 {[%clk 0:01:10.4]}
67. Kxh5 {[%clk 0:01:29.3]} 67... Rg3 {[%clk 0:01:11.6]} 68. b4 {[%clk
0:01:25.7]} 68... Rc3 {[%clk 0:00:43.8]} 69. Rc6 {[%clk 0:01:25.7]} 69... a5
{[%clk 0:00:40.8]} 70. bxa5 {[%clk 0:00:53.6]} 70... bxa5 {[%clk 0:00:41.5]} 71.
Kg5 {[%clk 0:00:53.4]} 71... a4 {[%clk 0:00:41]} 72. Kf5 {[%clk 0:00:54]} 72...
a3 {[%clk 0:00:42.2]} 73. Rc7+ {[%clk 0:00:53.7]} 73... Ke8 {[%clk 0:00:40]} 74.
Ke6 {[%clk 0:00:54.2]} 74... Kd8 {[%clk 0:00:36.2]} 75. Kd6 {[%clk 0:00:51.9]}
75... a2 {[%clk 0:00:23.2]} 76. Ra7 {[%clk 0:00:52.8]} 76... Rxc4 {[%clk
0:00:21]} 77. Ra8+ {[%clk 0:00:49.5]} 77... Rc8 {[%clk 0:00:21]} 78. Rxa2 {[%clk
0:00:51.4]} 78... Rb8 {[%clk 0:00:19.1]} 79. Ke6 {[%clk 0:00:33.7]} 79... Rb3
{[%clk 0:00:11.4]} 80. Ra8+ {[%clk 0:00:33]} 80... Kc7 {[%clk 0:00:12.6]} 81.
d6+ {[%clk 0:00:33.8]} 81... Kb7 {[%clk 0:00:07.4]} 82. Rh8 {[%clk 0:00:31.7]}
82... Re3+ {[%clk 0:00:08]} 83. Kd7 {[%clk 0:00:32]} 83... Rg3 {[%clk
0:00:09.1]} 84. Rh7 {[%clk 0:00:29]} 84... Rg8 {[%clk 0:00:08.9]} 85. Ke6+
{[%clk 0:00:20.8]} 85... Kc8 {[%clk 0:00:09.9]} 86. Rc7+ {[%clk 0:00:20.9]}
86... Kd8 {[%clk 0:00:10.6]} 87. Rd7+ {[%clk 0:00:18.3]} 87... Ke8 {[%clk
0:00:11.6]} 88. Re7+ {[%clk 0:00:19.2]} 88... Kd8 {[%clk 0:00:12.6]} 89. Ra7
{[%clk 0:00:19.3]} 89... Rg6+ {[%clk 0:00:12.4]} 90. Kd5 {[%clk 0:00:20.7]}
90... Rg1 {[%clk 0:00:12.2]} 91. Ra8+ {[%clk 0:00:18.1]} 91... Kd7 {[%clk
0:00:12.9]} 92. Ra7+ {[%clk 0:00:20]} 92... Kd8 {[%clk 0:00:13.6]} 93. Ra8+
{[%clk 0:00:21.8]} 93... Kd7 {[%clk 0:00:14.1]} 94. Ra7+ {[%clk 0:00:23.7]}
94... Kd8 {[%clk 0:00:14.6]} 95. Ra8+ {[%clk 0:00:25.3]} 95... Kd7 {[%clk
0:00:15.9]} 96. Ra7+ {[%clk 0:00:26.4]} 96... Kd8 {[%clk 0:00:16.4]} 97. Ra8+
{[%clk 0:00:26.4]} 97... Kd7 {[%clk 0:00:16.9]} 1/2-1/2

[Event "*** Qualifier 3: Titled Tuesday 3|2 Blitz"]
[Site "Chess.com"]
[Date "2017.04.18"]
[Round "1"]
[White "NMJeevanK"]
[Black "kleinebeer98"]
[Result "1/2-1/2"]
[WhiteElo "2162"]
[BlackElo "2448"]
[TimeControl "180+2"]
[EndTime "13:15:34 PDT"]
[Termination "Game drawn by repetition"]

1. e4 {[%clk 0:03:02]} 1... e5 {[%clk 0:03:00.4]} 2. Nf3 {[%clk 0:03:02.7]} 2...
Nc6 {[%clk 0:03:01.4]} 3. Bb5 {[%clk 0:03:03.9]} 3... f5 {[%clk 0:03:02.5]} 4.
d3 {[%clk 0:03:04.1]} 4... fxe4 {[%clk 0:03:03.6]} 5. dxe4 {[%clk 0:03:05.3]}
5... Nf6 {[%clk 0:03:05.1]} 6. Nc3 {[%clk 0:03:05.8]} 6... Bb4 {[%clk
0:03:06.3]} 7. O-O {[%clk 0:03:03.2]} 7... Bxc3 {[%clk 0:03:07.1]} 8. bxc3
{[%clk 0:03:05.1]} 8... d6 {[%clk 0:03:08.6]} 9. Qd3 {[%clk 0:03:02.8]} 9... O-O
{[%clk 0:03:09.1]} 10. h3 {[%clk 0:03:03]} 10... Kh8 {[%clk 0:03:10.3]} 11. Rd1
{[%clk 0:03:00.5]} 11... Qe8 {[%clk 0:03:10.3]} 12. Bg5 {[%clk 0:02:59]} 12...
Qg6 {[%clk 0:03:08.9]} 13. Bxf6 {[%clk 0:02:59.5]} 13... Rxf6 {[%clk 0:03:09.7]}
14. Bxc6 {[%clk 0:02:56.9]} 14... bxc6 {[%clk 0:02:43.6]} 15. Nxe5 {[%clk
0:02:56.5]} 15... Qe8 {[%clk 0:02:40.3]} 16. Nf3 {[%clk 0:02:47.7]} 16... Bd7
{[%clk 0:02:26.6]} 17. e5 {[%clk 0:02:30.1]} 17... Rg6 {[%clk 0:02:23.9]} 18.
exd6 {[%clk 0:02:24.9]} 18... cxd6 {[%clk 0:02:18.6]} 19. Kh1 {[%clk 0:02:15.8]}
19... Rf6 {[%clk 0:02:10.4]} 20. Re1 {[%clk 0:01:38.7]} 20... Qh5 {[%clk
0:02:08.8]} 21. Ng1 {[%clk 0:01:39.7]} 21... Raf8 {[%clk 0:02:03.1]} 22. Re7
{[%clk 0:01:35.5]} 22... Be6 {[%clk 0:01:57.8]} 23. Re1 {[%clk 0:01:17.6]} 23...
Bd5 {[%clk 0:01:57.7]} 24. f3 {[%clk 0:01:13.7]} 24... c5 {[%clk 0:01:32.8]} 25.
Rxa7 {[%clk 0:00:57.7]} 25... h6 {[%clk 0:01:20.9]} 26. Ree7 {[%clk 0:00:57.9]}
26... Rg6 {[%clk 0:01:21.9]} 27. c4 {[%clk 0:00:51.9]} 27... Bc6 {[%clk
0:01:13.3]} 28. Rac7 {[%clk 0:00:48.8]} 28... Ba8 {[%clk 0:01:11.7]} 29. Qc3
{[%clk 0:00:46.6]} 29... Qg5 {[%clk 0:01:10]} 30. Re2 {[%clk 0:00:35.6]} 30...
Kh7 {[%clk 0:00:55.4]} 31. Rce7 {[%clk 0:00:35]} 31... Bc6 {[%clk 0:00:44.4]}
32. Rc7 {[%clk 0:00:35.3]} 32... Ba8 {[%clk 0:00:44.9]} 33. Qa1 {[%clk
0:00:32.3]} 33... Qg3 {[%clk 0:00:40.5]} 34. Qe1 {[%clk 0:00:30.2]} 34... Qg5
{[%clk 0:00:36.6]} 35. Qd2 {[%clk 0:00:28.4]} 35... Qh4 {[%clk 0:00:27.5]} 36.
Qd3 {[%clk 0:00:22.9]} 36... Qg3 {[%clk 0:00:23.5]} 37. Rce7 {[%clk 0:00:19.3]}
37... Rf6 {[%clk 0:00:11.7]} 38. Re8 {[%clk 0:00:20]} 38... Bc6 {[%clk
0:00:12.5]} 39. R8e3 {[%clk 0:00:20.2]} 39... Qg5 {[%clk 0:00:08.5]} 40. Re7
{[%clk 0:00:19.2]} 40... h5 {[%clk 0:00:08.6]} 41. Qd2 {[%clk 0:00:18.9]} 41...
Qg3 {[%clk 0:00:09.3]} 42. Qe1 {[%clk 0:00:19.3]} 42... Qg5 {[%clk 0:00:09.3]}
43. Qd2 {[%clk 0:00:20.6]} 43... Qh4 {[%clk 0:00:10.7]} 44. Qd3 {[%clk
0:00:19.8]} 44... Qg3 {[%clk 0:00:11.8]} 45. R7e3 {[%clk 0:00:19.6]} 45... h4
{[%clk 0:00:12.7]} 46. Qd1 {[%clk 0:00:13.6]} 46... Kh6 {[%clk 0:00:13]} 47. Qe1
{[%clk 0:00:14.9]} 47... Qg5 {[%clk 0:00:14.4]} 48. Rd3 {[%clk 0:00:12.8]} 48...
Rf4 {[%clk 0:00:11.8]} 49. Qd2 {[%clk 0:00:13.3]} 49... Rxc4 {[%clk 0:00:10.6]}
50. Rxd6 {[%clk 0:00:14]} 50... Qxd2 {[%clk 0:00:07]} 51. Rxg6+ {[%clk
0:00:14.4]} 51... Kxg6 {[%clk 0:00:08.9]} 52. Rxd2 {[%clk 0:00:16.3]} 52... Ra4
{[%clk 0:00:10.1]} 53. c3 {[%clk 0:00:16]} 53... Ra3 {[%clk 0:00:11.2]} 54. Rc2
{[%clk 0:00:17.3]} 54... Ba4 {[%clk 0:00:12.3]} 55. Rc1 {[%clk 0:00:16.8]} 55...
Rxa2 {[%clk 0:00:13.6]} 56. Re1 {[%clk 0:00:16.6]} 56... Kf5 {[%clk 0:00:13.7]}
57. Ne2 {[%clk 0:00:18.5]} 57... g5 {[%clk 0:00:12.1]} 58. Nc1 {[%clk
0:00:18.2]} 58... Rd2 {[%clk 0:00:13.3]} 59. Kg1 {[%clk 0:00:16.5]} 59... Bb5
{[%clk 0:00:06.4]} 60. Nb3 {[%clk 0:00:17]} 60... Rd5 {[%clk 0:00:07.5]} 61. Re4
{[%clk 0:00:15]} 61... Bd3 {[%clk 0:00:06.8]} 62. Re3 {[%clk 0:00:13.5]} 62...
Bc2 {[%clk 0:00:07.9]} 63. Na5 {[%clk 0:00:13.1]} 63... Rd1+ {[%clk 0:00:09.3]}
64. Kf2 {[%clk 0:00:14.1]} 64... Bd3 {[%clk 0:00:11.2]} 65. Re1 {[%clk 0:00:14]}
65... Rd2+ {[%clk 0:00:12.3]} 66. Kg1 {[%clk 0:00:15.5]} 66... Kf4 {[%clk
0:00:10.9]} 67. Nb7 {[%clk 0:00:15.2]} 67... Kg3 {[%clk 0:00:11.2]} 68. Nxc5
{[%clk 0:00:08.7]} 68... Rxg2+ {[%clk 0:00:11.4]} 69. Kh1 {[%clk 0:00:10.2]}
69... Rh2+ {[%clk 0:00:10.3]} 70. Kg1 {[%clk 0:00:11.6]} 70... Rg2+ {[%clk
0:00:12.2]} 71. Kh1 {[%clk 0:00:13]} 71... Bf5 {[%clk 0:00:12.7]} 72. Ne4+
{[%clk 0:00:12.3]} 72... Bxe4 {[%clk 0:00:09.1]} 73. Rxe4 {[%clk 0:00:14.2]}
73... Rc2 {[%clk 0:00:07.3]} 74. Re1 {[%clk 0:00:13]} 74... Kxh3 {[%clk
0:00:07.7]} 75. Kg1 {[%clk 0:00:11.1]} 75... Kg3 {[%clk 0:00:07.4]} 76. Rf1
{[%clk 0:00:08.4]} 76... h3 {[%clk 0:00:07.4]} 77. Kh1 {[%clk 0:00:07.7]} 77...
Rxc3 {[%clk 0:00:05.8]} 78. Rg1+ {[%clk 0:00:08.9]} 78... Kf4 {[%clk 0:00:04.7]}
79. Rg4+ {[%clk 0:00:09.9]} 79... Kf5 {[%clk 0:00:05.4]} 80. Rg3 {[%clk
0:00:10.1]} 80... Kf4 {[%clk 0:00:06.3]} 81. Kh2 {[%clk 0:00:08.5]} 81... Rc1
{[%clk 0:00:04.9]} 82. Rxh3 {[%clk 0:00:04]} 82... Rc2+ {[%clk 0:00:03.7]} 83.
Kg1 {[%clk 0:00:05.4]} 83... Rc3 {[%clk 0:00:05.4]} 84. Kg2 {[%clk 0:00:06.8]}
84... Rc2+ {[%clk 0:00:06.4]} 85. Kg1 {[%clk 0:00:08.2]} 85... Rb2 {[%clk
0:00:07.2]} 86. Kf1 {[%clk 0:00:07.5]} 86... Ke3 {[%clk 0:00:08.3]} 87. Rg3
{[%clk 0:00:04.6]} 87... Kf4 {[%clk 0:00:05.3]} 88. Rh3 {[%clk 0:00:05]} 88...
Ra2 {[%clk 0:00:06.3]} 89. Kg1 {[%clk 0:00:05.2]} 89... Ra3 {[%clk 0:00:07.1]}
90. Kg2 {[%clk 0:00:06]} 90... Rb3 {[%clk 0:00:08.1]} 91. Kg1 {[%clk 0:00:07.3]}
91... Rxf3 {[%clk 0:00:07.8]} 92. Rh8 {[%clk 0:00:08.5]} 92... Ra3 {[%clk
0:00:06.4]} 93. Rf8+ {[%clk 0:00:09.7]} 93... Kg3 {[%clk 0:00:07.5]} 94. Rf1
{[%clk 0:00:10.7]} 94... Ra2 {[%clk 0:00:06.6]} 95. Rd1 {[%clk 0:00:11.2]} 95...
Rg2+ {[%clk 0:00:05]} 96. Kh1 {[%clk 0:00:12.5]} 96... Rh2+ {[%clk 0:00:05.7]}
97. Kg1 {[%clk 0:00:13.9]} 97... Rg2+ {[%clk 0:00:07.6]} 98. Kh1 {[%clk
0:00:15.4]} 98... Rc2 {[%clk 0:00:08.5]} 99. Rd3+ {[%clk 0:00:15.9]} 99... Kf4
{[%clk 0:00:09.5]} 100. Kg1 {[%clk 0:00:16.7]} 100... g4 {[%clk 0:00:10.5]} 101.
Rd4+ {[%clk 0:00:16.7]} 101... Kf3 {[%clk 0:00:09.3]} 102. Rd3+ {[%clk
0:00:17.8]} 102... Ke4 {[%clk 0:00:10.4]} 103. Ra3 {[%clk 0:00:17.6]} 103... Rb2
{[%clk 0:00:11]} 104. Rg3 {[%clk 0:00:17.3]} 104... Kf4 {[%clk 0:00:12]} 105.
Rg2 {[%clk 0:00:18.7]} 105... Rb1+ {[%clk 0:00:10.8]} 106. Kh2 {[%clk 0:00:20]}
106... Rb8 {[%clk 0:00:07.6]} 107. Rf2+ {[%clk 0:00:20.1]} 107... Ke3 {[%clk
0:00:07.7]} 108. Rg2 {[%clk 0:00:20.9]} 108... Kf3 {[%clk 0:00:08.3]} 109. Rg3+
{[%clk 0:00:21.1]} 109... Kf2 {[%clk 0:00:09]} 110. Rg2+ {[%clk 0:00:20.7]}
110... Kf3 {[%clk 0:00:10.1]} 111. Rg3+ {[%clk 0:00:22.1]} 111... Kf4 {[%clk
0:00:10.6]} 112. Ra3 {[%clk 0:00:22.3]} 112... Rb2+ {[%clk 0:00:09.7]} 113. Kg1
{[%clk 0:00:23.7]} 113... Kg5 {[%clk 0:00:10.9]} 114. Rg3 {[%clk 0:00:12.1]}
114... Kh4 {[%clk 0:00:11.2]} 115. Rg2 {[%clk 0:00:14]} 115... Rb1+ {[%clk
0:00:11.4]} 116. Kh2 {[%clk 0:00:14.8]} 116... Ra1 {[%clk 0:00:12.5]} 117. Rg1
{[%clk 0:00:15.9]} 117... Ra2+ {[%clk 0:00:11.7]} 118. Rg2 {[%clk 0:00:16.8]}
118... g3+ {[%clk 0:00:12.3]} 119. Kh1 {[%clk 0:00:16.7]} 119... Ra1+ {[%clk
0:00:11.7]} 120. Rg1 {[%clk 0:00:17.9]} 120... Ra2 {[%clk 0:00:10.5]} 121. Rg2
{[%clk 0:00:18.5]} 121... Ra3 {[%clk 0:00:11.2]} 122. Re2 {[%clk 0:00:12.9]}
122... Kh3 {[%clk 0:00:11.3]} 123. Rh2+ {[%clk 0:00:13.7]} 123... Kg4 {[%clk
0:00:10.9]} 124. Rg2 {[%clk 0:00:10]} 124... Kf3 {[%clk 0:00:10.4]} 125. Rg1
{[%clk 0:00:09.4]} 125... Ra2 {[%clk 0:00:07.9]} 126. Rf1+ {[%clk 0:00:08.4]}
126... Rf2 {[%clk 0:00:08.7]} 127. Rc1 {[%clk 0:00:06.4]} 127... Kg4 {[%clk
0:00:05.7]} 128. Rc4+ {[%clk 0:00:03.2]} 128... Kh3 {[%clk 0:00:06.6]} 129. Rc1
{[%clk 0:00:05.1]} 129... Re2 {[%clk 0:00:05.2]} 130. Kg1 {[%clk 0:00:05.1]}
130... Rf2 {[%clk 0:00:05.4]} 131. Kh1 {[%clk 0:00:05.8]} 131... Re2 {[%clk
0:00:06]} 132. Kg1 {[%clk 0:00:07.1]} 132... Rf2 {[%clk 0:00:07]} 133. Kh1
{[%clk 0:00:08.3]} 1/2-1/2

[Event "*** Qualifier 3: Titled Tuesday 3|2 Blitz"]
[Site "Chess.com"]
[Date "2017.04.18"]
[Round "2"]
[White "cheese111"]
[Black "Roachelley"]
[Result "1-0"]
[WhiteElo "2257"]
[BlackElo "2136"]
[TimeControl "180+2"]
[EndTime "13:18:44 PDT"]
[Termination "cheese111 won by resignation"]

1. e4 {[%clk 0:03:02]} 1... c5 {[%clk 0:02:59.7]} 2. Nf3 {[%clk 0:03:02.9]} 2...
d6 {[%clk 0:03:00.6]} 3. Bb5+ {[%clk 0:03:01.7]} 3... Bd7 {[%clk 0:03:01.5]} 4.
Bxd7+ {[%clk 0:03:02]} 4... Qxd7 {[%clk 0:03:03.4]} 5. O-O {[%clk 0:03:02.6]}
5... Nc6 {[%clk 0:03:03.1]} 6. Qe2 {[%clk 0:03:03.4]} 6... g6 {[%clk 0:03:01.6]}
7. Rd1 {[%clk 0:03:03]} 7... Bg7 {[%clk 0:03:01.8]} 8. c3 {[%clk 0:03:03.5]}
8... e6 {[%clk 0:03:02.8]} 9. d4 {[%clk 0:03:03.4]} 9... cxd4 {[%clk 0:03:03.6]}
10. cxd4 {[%clk 0:03:04.1]} 10... Nge7 {[%clk 0:03:04.5]} 11. Nc3 {[%clk
0:03:01.3]} 11... O-O {[%clk 0:03:05]} 12. d5 {[%clk 0:02:56.7]} 12... exd5
{[%clk 0:03:01.2]} 13. Nxd5 {[%clk 0:02:58.6]} 13... Nxd5 {[%clk 0:02:58.7]} 14.
Rxd5 {[%clk 0:02:59.2]} 14... Rad8 {[%clk 0:02:57.5]} 15. Bg5 {[%clk 0:02:52.5]}
15... Rde8 {[%clk 0:02:49.1]} 16. Re1 {[%clk 0:02:33]} 16... Qe6 {[%clk
0:02:46.2]} 17. Qd2 {[%clk 0:02:29.3]} 17... h6 {[%clk 0:02:28.3]} 18. Bxh6
{[%clk 0:02:26.5]} 18... Bxh6 {[%clk 0:02:26.8]} 19. Qxh6 {[%clk 0:02:28.4]}
19... Ne7 {[%clk 0:02:20]} 20. Ng5 {[%clk 0:02:26.4]} 1-0